bitfinex/quotes_ETHUSD_20241024
["timestamp","ask_amount","ask_price","bid_price","bid_amount"]
[1729800403236,0.06699241,2535.5,2535.2,1.61492124]
[1729800403523,4.01098241,2535.5,2535.2,1.61492124]
[1729800403687,0.06699241,2535.5,2535.2,1.61492124]
[1729800404916,0.06699241,2535.5,2535.2,5.55936124]
[1729800405130,0.06699241,2535.5,2535.3,1.61492124]
[1729800405621,0.06699241,2535.5,2535.2,1.61492124]
[1729800406615,0.06699241,2535.5,2535.3,1.61492124]
[1729800407320,0.06705968,2535.4,2535.2,1.61492124]
[1729800407498,3.94385,2535.6,2535.2,1.61492124]
[1729800407699,0.06713015,2535.5,2535.3,1.61492124]
[1729800409010,4.01114015,2535.5,2534.9,4.72738]
[1729800409214,3.94444,2535.3,2535.1,1.61492124]
[1729800409533,3.94444,2535.3,2534.9,0.7826]
[1729800409534,0.06705647,2535.2,2535.0,1.61492124]
[1729800409692,3.94444,2535.3,2535.1,1.61492124]
[1729800410045,0.06718375,2535.2,2535.0,1.61492124]
[1729800410211,0.06718375,2535.2,2535.1,1.61492124]
[1729800410391,3.94444,2535.3,2535.1,1.61492124]
[1729800410748,0.06664322,2535.2,2535.0,1.61492124]
[1729800411231,3.94444,2535.3,2535.1,1.61492124]
[1729800412694,3.94444,2535.3,2535.0,1.61492124]
[1729800412991,3.94447,2535.2,2535.0,1.61492124]
[1729800413494,0.6719,2535.4,2535.0,1.61492124]
[1729800413495,3.94433,2535.3,2535.0,1.61492124]
[1729800414929,0.06678099,2535.2,2535.0,1.61492124]
[1729800415229,0.4683011,2535.2,2534.7,0.7583]
[1729800415399,4.01185328,2535.1,2534.7,4.70351]
[1729800415604,4.01185328,2535.1,2534.8,1.61492124]
[1729800415831,4.01173328,2535.1,2534.9,1.61492124]
[1729800420234,4.61673,2535.0,2534.7,1.61492124]
[1729800420407,0.6719,2535.0,2534.8,1.61492124]
[1729800420612,0.06696448,2534.9,2534.7,1.61492124]
[1729800420915,0.06696448,2534.9,2534.8,1.61492124]
[1729800425429,3.94465,2535.1,2534.8,1.61492124]
[1729800425642,3.94465,2535.1,2534.9,1.61492124]
[1729800426348,0.06695256,2535.0,2534.9,1.61492124]
[1729800427448,0.06695256,2535.0,2534.8,1.61492124]
[1729800428414,0.06695256,2535.0,2534.9,1.61492124]
[1729800429114,0.06695256,2535.0,2534.8,1.61492124]
[1729800429554,0.06695256,2535.0,2534.9,1.61492124]
[1729800429726,0.0654308,2535.0,2534.9,1.61492124]
[1729800429930,0.6719,2535.2,2534.9,1.61492124]
[1729800430125,0.06677502,2535.1,2535.0,1.61492124]
[1729800431035,0.06677502,2535.1,2534.9,1.61492124]
[1729800432262,0.06677502,2535.1,2535.0,1.61492124]
[1729800432560,3.94416,2535.4,2535.0,1.61492124]
[1729800432730,3.94416,2535.4,2535.1,1.61492124]
[1729800432937,3.94402,2535.5,2535.3,1.61492124]
[1729800433129,4.61561,2535.7,2535.4,1.61492124]
[1729800433548,0.0656243,2535.6,2535.4,1.61492124]
[1729800433759,0.0656243,2535.6,2535.3,2.39052124]
[1729800433760,4.0095443,2535.6,2535.3,2.39052124]
[1729800433963,3.94401,2535.5,2535.3,1.61492124]
[1729800434148,4.01023686,2535.5,2535.3,1.61492124]
[1729800434323,0.06622686,2535.5,2535.3,1.61492124]
[1729800435464,4.01027686,2535.5,2535.2,1.61492124]
[1729800435826,4.01027686,2535.5,2535.3,1.61492124]
[1729800436285,0.06622686,2535.5,2535.3,1.61492124]
[1729800436430,4.01021686,2535.5,2535.2,1.61492124]
[1729800436766,4.01021686,2535.5,2535.3,1.61492124]
[1729800437058,7.95431686,2535.5,2535.3,1.61492124]
[1729800437260,4.01021686,2535.5,2535.3,1.61492124]
[1729800437455,4.01021686,2535.5,2535.2,1.61492124]
[1729800439651,7.95431686,2535.5,2535.2,1.61492124]
[1729800439965,3.9447,2535.1,2534.7,0.8051]
[1729800440261,3.94462,2535.1,2534.9,1.61492124]
[1729800440562,0.06505061,2535.0,2534.9,1.61492124]
[1729800442166,0.06505061,2535.0,2534.8,1.61492124]
[1729800442348,4.00982061,2535.0,2534.9,1.61492124]
[1729800442940,0.06505061,2535.0,2534.9,1.61492124]
[1729800443144,3.94462,2535.1,2534.9,1.61492124]
[1729800443345,0.06505819,2535.0,2534.9,1.61492124]
[1729800444471,4.00982819,2535.0,2534.8,1.61492124]
[1729800444634,0.06505819,2535.0,2534.8,1.61492124]
[1729800444835,0.06505819,2535.0,2534.9,1.61492124]
[1729800448266,0.06505819,2535.0,2534.7,4.75033]
[1729800448447,0.06505819,2535.0,2534.9,1.61492124]
[1729800448831,0.06505819,2535.0,2534.9,5.55984124]
[1729800449153,3.94427,2535.4,2534.9,5.63873417]
[1729800449473,3.94427,2535.4,2535.2,1.61492124]
[1729800449770,4.800294,2535.4,2535.1,1.61492124]
[1729800450767,4.800294,2535.4,2535.1,2.40862124]
[1729800450942,0.06423937,2535.3,2535.1,2.40862124]
[1729800451149,4.00855937,2535.3,2535.1,2.40862124]
[1729800451356,4.00855937,2535.3,2535.2,1.61492124]
[1729800451357,0.06423937,2535.3,2535.2,1.61492124]
[1729800451763,0.06423937,2535.3,2535.1,2.40862124]
[1729800452074,0.06423937,2535.3,2535.2,1.61492124]
[1729800452636,4.00853937,2535.3,2535.2,1.61492124]
[1729800452879,0.06423937,2535.3,2535.2,1.61492124]
[1729800453234,3.94421,2535.4,2535.2,1.61492124]
[1729800453668,3.94398,2535.6,2535.3,1.61492124]
[1729800453832,3.94415,2535.4,2535.3,1.61492124]
[1729800454153,0.6719,2535.7,2535.3,1.61492124]
[1729800454352,3.944,2535.5,2535.3,1.61492124]
[1729800454556,0.0642639,2535.4,2535.3,1.61492124]
[1729800455641,4.0084839,2535.4,2535.2,1.61492124]
[1729800457661,4.0084839,2535.4,2535.3,1.61492124]
[1729800458572,4.0084839,2535.4,2535.2,1.61492124]
[1729800458760,0.0642639,2535.4,2535.2,1.61492124]
[1729800459281,0.0642639,2535.4,2535.3,1.61492124]
[1729800460740,0.0642639,2535.4,2535.2,1.61492124]
[1729800461648,0.0642639,2535.4,2535.3,1.61492124]
[1729800461845,3.94407,2535.5,2535.3,1.61492124]
[1729800464877,3.0560169,2535.5,2535.3,1.61492124]
[1729800465063,3.94415,2535.4,2535.3,1.61492124]
[1729800465275,3.94415,2535.4,2535.2,1.61492124]
[1729800465477,4.00627153,2535.4,2535.2,1.61492124]
[1729800466344,0.06212153,2535.4,2535.3,1.61492124]
[1729800466545,3.94345,2535.9,2535.5,3.94397]
[1729800466757,3.94345,2535.9,2535.7,1.61492124]
[1729800466995,3.94345,2535.9,2535.6,1.61492124]
[1729800468084,3.94352,2535.8,2535.3,4.72718]
[1729800468290,3.94352,2535.8,2535.5,1.61492124]
[1729800469058,0.05809904,2535.7,2535.5,1.61492124]
[1729800469575,0.05809904,2535.7,2535.6,1.61492124]
[1729800469775,0.05809904,2535.7,2535.5,1.61492124]
[1729800470804,0.05809904,2535.7,2535.6,1.61492124]
[1729800471171,0.05809904,2535.7,2535.5,1.61492124]
[1729800471577,0.05809904,2535.7,2535.6,1.61492124]
[1729800471776,0.05809904,2535.7,2535.6,6.38725124]
[1729800471979,3.94329,2536.0,2535.6,3.43060027]
[1729800472285,0.05673276,2535.9,2535.8,1.61492124]
[1729800472905,0.05673276,2535.9,2535.7,1.61492124]
[1729800473108,4.00010276,2535.9,2535.7,1.61492124]
[1729800473261,3.94337,2535.9,2535.7,1.61492124]
[1729800473464,0.05679645,2535.8,2535.7,1.61492124]
[1729800475189,0.05679645,2535.8,2535.6,2.44342124]
[1729800475775,0.05679645,2535.8,2535.7,1.61492124]
[1729800476097,0.05679645,2535.8,2535.6,2.44342124]
[1729800478112,4.00032645,2535.8,2535.6,2.44342124]
[1729800478280,4.00032645,2535.8,2535.6,0.8285]
[1729800478479,4.00032645,2535.8,2535.5,1.61492124]
[1729800478676,4.00032645,2535.8,2535.6,1.61492124]
[1729800479608,4.00032645,2535.8,2535.5,1.61492124]
[1729800480529,0.6719,2535.7,2535.1,0.7779]
[1729800480683,4.61561,2535.7,2535.1,4.7225]
[1729800480883,3.94422,2535.4,2535.2,1.61492124]
[1729800481199,3.94449,2535.2,2534.8,6.33790124]
[1729800481499,4.0010464,2535.1,2534.8,2.39282124]
[1729800481707,4.0010464,2535.1,2534.8,0.7779]
[1729800481907,4.0010464,2535.1,2534.8,2.39282124]
[1729800482092,3.94484,2535.0,2534.7,1.61492124]
[1729800482292,3.94484,2535.0,2534.6,3.94532]
[1729800482293,3.94484,2535.0,2534.8,1.61492124]
[1729800482484,0.05600849,2534.9,2534.8,1.61492124]
[1729800482883,3.11292273,2535.0,2534.8,1.61492124]
[1729800483105,0.0540148,2534.9,2534.8,1.61492124]
[1729800484020,0.43789855,2534.9,2534.5,1.61492124]
[1729800484197,3.94514,2534.8,2534.5,1.61492124]
[1729800484395,0.05379566,2534.7,2534.4,1.61492124]
[1729800484598,0.6719,2534.7,2534.4,1.61492124]
[1729800484797,0.05364482,2534.6,2534.5,1.61492124]
[1729800485723,0.05364482,2534.6,2534.4,3.94569]
[1729800485724,0.05364482,2534.6,2534.4,1.61492124]
[1729800485893,3.9451,2534.8,2534.5,1.61492124]
[1729800486092,3.9451,2534.8,2534.3,4.72367]
[1729800486299,3.94531,2534.7,2534.4,1.61492124]
[1729800487011,3.9451,2534.8,2534.4,1.61492124]
[1729800487321,7.89029,2534.8,2534.4,1.61492124]
[1729800487514,7.89029,2534.8,2534.5,1.61492124]
[1729800487823,7.89029,2534.8,2534.4,1.61492124]
[1729800488226,7.89029,2534.8,2534.5,1.61492124]
[1729800488400,7.89029,2534.8,2534.4,1.61492124]
[1729800489021,3.94537,2534.7,2534.5,1.61492124]
[1729800489224,3.94537,2534.7,2534.4,1.61492124]
[1729800489410,3.9451,2534.8,2534.5,1.61492124]
[1729800489920,4.61685,2534.9,2534.6,1.61492124]
[1729800490125,3.94508,2534.8,2534.6,1.61492124]
[1729800490924,0.6719,2534.9,2534.6,1.61492124]
[1729800491127,3.94448,2535.2,2534.8,1.61492124]
[1729800491337,3.94468,2535.1,2534.9,1.61492124]
[1729800493223,3.94449,2535.2,2534.9,1.61492124]
[1729800493431,3.94433,2535.3,2535.0,1.61492124]
[1729800493627,3.94513,2534.8,2534.3,3.94579]
[1729800493795,3.94513,2534.8,2534.5,1.61492124]
[1729800494904,3.94513,2534.8,2534.6,1.61492124]
[1729800495103,0.05368893,2534.7,2534.6,1.61492124]
[1729800495313,0.05368893,2534.7,2534.5,1.61492124]
[1729800495531,7.8903,2534.8,2534.5,1.61492124]
[1729800495694,3.94524,2534.7,2534.4,2.38922124]
[1729800496532,3.94513,2534.8,2534.6,1.61492124]
[1729800497047,3.94493,2534.9,2534.6,1.61492124]
[1729800498348,3.94512,2534.8,2534.6,1.61492124]
[1729800498646,0.05368893,2534.7,2534.6,1.61492124]
[1729800499047,3.94512,2534.8,2534.6,1.61492124]
[1729800499251,0.05368893,2534.7,2534.6,1.61492124]
[1729800499613,3.94512,2534.8,2534.6,1.61492124]
[1729800499822,0.05368893,2534.7,2534.6,1.61492124]
[1729800500227,3.94512,2534.8,2534.6,1.61492124]
[1729800500472,3.94501,2534.9,2534.7,1.61492124]
[1729800500950,3.94501,2534.9,2534.4,5.35337812]
[1729800500951,3.94501,2534.9,2534.6,1.61492124]
[1729800501348,3.9451,2534.8,2534.6,1.61492124]
[1729800501850,3.94501,2534.9,2534.6,1.61492124]
[1729800502335,0.05379097,2534.8,2534.6,1.61492124]
[1729800502725,0.05379097,2534.8,2534.7,1.61492124]
[1729800503249,0.05406525,2534.8,2534.7,1.61492124]
[1729800503554,3.94477,2535.0,2534.7,1.61492124]
[1729800503856,3.945,2534.9,2534.7,1.61492124]
[1729800504159,3.945,2534.9,2534.6,1.09137794]
[1729800504160,0.05392612,2534.9,2534.8,1.61492124]
[1729800504359,0.05392612,2534.9,2534.8,7.05586167]
[1729800504560,3.94453,2535.2,2534.8,7.05586167]
[1729800504856,3.94453,2535.2,2534.8,5.44094043]
[1729800505044,3.94453,2535.2,2534.8,5.36204192]
[1729800505045,0.05433213,2535.1,2534.8,5.36204192]
[1729800505245,0.05433213,2535.1,2534.9,1.61492124]
[1729800505861,3.99905213,2535.1,2534.8,0.7518]
[1729800506024,0.05433213,2535.1,2534.8,2.36672124]
[1729800509064,0.05433213,2535.1,2534.8,6.31179124]
[1729800510163,3.94453,2535.2,2534.9,1.61492124]
[1729800510326,0.05236695,2535.0,2534.9,1.61492124]
[1729800510657,0.05239821,2535.0,2534.9,1.61492124]
[1729800510963,3.94453,2535.2,2534.9,1.61492124]
[1729800511166,0.05239821,2535.0,2534.9,3.94492]
[1729800511478,0.05239821,2535.0,2534.9,6.50291153]
[1729800513146,3.94433,2535.3,2534.9,6.50291153]
[1729800513349,0.05059373,2535.0,2534.9,4.88799029]
[1729800513681,0.05027101,2535.0,2534.9,6.50291153]
[1729800513881,0.05027101,2535.0,2534.9,6.42402024]
[1729800514036,3.94433,2535.3,2534.9,6.42402024]
[1729800514235,3.94433,2535.3,2535.0,2.66940474]
[1729800514438,3.94448,2535.2,2534.9,1.61492124]
[1729800514735,4.61638,2535.2,2534.9,1.61492124]
[1729800514941,0.6719,2535.2,2534.9,1.61492124]
[1729800516337,0.6719,2535.2,2534.9,5.55982124]
[1729800516939,3.94433,2535.3,2534.9,5.55982124]
[1729800517134,3.94447,2535.2,2535.0,1.61492124]
[1729800517339,3.94446,2535.2,2535.0,1.61492124]
[1729800517540,0.0503415,2535.1,2535.0,1.61492124]
[1729800517976,3.94447,2535.2,2534.9,1.61492124]
[1729800518273,0.0503415,2535.1,2535.0,1.61492124]
[1729800518479,3.94439,2535.3,2535.0,1.61492124]
[1729800518654,0.0503415,2535.1,2535.0,1.61492124]
[1729800518972,3.94438,2535.3,2535.0,1.61492124]
[1729800519270,3.94438,2535.3,2534.9,5.55983124]
[1729800519471,0.05041197,2535.2,2534.9,5.55983124]
[1729800519661,3.94438,2535.3,2534.9,1.61492124]
[1729800519842,0.0503415,2535.1,2534.9,1.61492124]
[1729800520043,3.94448,2535.2,2534.9,1.61492124]
[1729800520245,0.05027101,2535.0,2534.9,1.61492124]
[1729800520444,3.94448,2535.2,2534.9,1.61492124]
[1729800520643,0.05024481,2535.0,2534.9,1.61492124]
[1729800520868,3.94448,2535.2,2534.9,1.61492124]
[1729800521070,0.05024481,2535.0,2534.9,1.61492124]
[1729800521274,3.94448,2535.2,2534.9,1.61492124]
[1729800521537,0.05024481,2535.0,2534.9,5.55978124]
[1729800521745,4.61608,2535.4,2534.9,6.58539836]
[1729800521943,3.94438,2535.3,2535.0,1.61492124]
[1729800522546,3.94447,2535.2,2534.8,2.36672124]
[1729800522742,3.94447,2535.2,2534.8,6.31173124]
[1729800522946,3.94447,2535.2,2534.9,1.61492124]
[1729800524766,0.05037439,2535.1,2534.9,1.61492124]
[1729800525685,3.9444,2535.3,2534.9,1.61492124]
[1729800525983,0.05030391,2535.0,2534.9,1.61492124]
[1729800526581,3.94452,2535.2,2534.9,1.61492124]
[1729800526739,0.05030391,2535.0,2534.9,1.61492124]
[1729800526943,3.94452,2535.2,2534.9,1.61492124]
[1729800527145,0.05030391,2535.0,2534.9,1.61492124]
[1729800527375,3.94452,2535.2,2534.9,1.61492124]
[1729800527994,0.05037439,2535.1,2534.9,1.61492124]
[1729800530683,0.05037439,2535.1,2534.8,2.36672124]
[1729800532664,0.05037439,2535.1,2534.9,1.61492124]
[1729800533883,5.23384275,2535.4,2534.9,1.61492124]
[1729800533884,3.94431,2535.3,2534.9,1.61492124]
[1729800534087,0.61764275,2535.4,2535.1,1.61492124]
[1729800534306,0.6719,2535.6,2535.3,1.61492124]
[1729800534519,0.46573363,2535.7,2535.5,1.61492124]
[1729800534675,5.23280265,2536.0,2535.6,2.43382124]
[1729800535685,0.04954479,2535.9,2535.6,2.43382124]
[1729800536070,0.04954479,2535.9,2535.7,1.61492124]
[1729800536472,3.99298479,2535.9,2535.6,2.43382124]
[1729800536673,0.04954479,2535.9,2535.6,0.8189]
[1729800537106,3.99294479,2535.9,2535.6,0.8189]
[1729800538813,3.99294479,2535.9,2535.6,2.43382124]
[1729800538970,3.94353,2535.8,2535.5,1.61492124]
[1729800539486,0.04940392,2535.7,2535.5,1.61492124]
[1729800540407,0.04940392,2535.7,2535.4,6.37781124]
[1729800542127,0.04940392,2535.7,2535.2,3.94437]
[1729800542128,2.33622516,2535.7,2535.2,4.76325]
[1729800542311,3.94391,2535.6,2535.2,5.43382124]
[1729800542487,0.04933348,2535.6,2535.3,1.61492124]
[1729800543029,0.04933348,2535.6,2535.3,5.55921124]
[1729800544831,0.04933348,2535.6,2535.5,1.61492124]
[1729800545126,3.9437,2535.7,2535.3,5.55921124]
[1729800545315,0.04951458,2535.6,2535.3,1.61492124]
[1729800545891,0.04951458,2535.6,2535.3,5.55921124]
[1729800546291,0.04951458,2535.6,2535.2,6.37821124]
[1729800546531,0.04951458,2535.6,2535.3,1.61492124]
[1729800547096,0.04951458,2535.6,2535.2,6.37820124]
[1729800548040,0.04951458,2535.6,2535.3,1.61492124]
[1729800548202,0.04951458,2535.6,2535.4,1.61492124]
[1729800548390,0.04951458,2535.6,2535.3,5.55918124]
[1729800548833,0.04951458,2535.6,2535.4,1.61492124]
[1729800549019,0.04951458,2535.6,2535.3,5.55918124]
[1729800549191,3.94354,2535.8,2535.3,5.55918124]
[1729800549403,0.04926075,2535.5,2535.3,5.55918124]
[1729800549616,3.94354,2535.8,2535.3,5.55918124]
[1729800549817,0.04919029,2535.4,2535.3,5.55918124]
[1729800549999,3.94354,2535.8,2535.3,5.55918124]
[1729800550226,0.04919029,2535.4,2535.3,5.55918124]
[1729800550745,3.94354,2535.8,2535.3,5.55918124]
[1729800551044,0.04919029,2535.4,2535.3,5.55918124]
[1729800551341,0.04919029,2535.4,2535.3,1.61492124]
[1729800551546,3.94368,2535.7,2535.3,1.61492124]
[1729800551908,3.94368,2535.7,2535.3,5.55920124]
[1729800551909,0.04933121,2535.6,2535.3,5.55920124]
[1729800552310,3.94354,2535.8,2535.3,5.55920124]
[1729800552511,0.04926075,2535.5,2535.3,5.55920124]
[1729800552713,3.94354,2535.8,2535.3,5.55920124]
[1729800552945,0.04919029,2535.4,2535.3,5.55920124]
[1729800553445,3.94368,2535.7,2535.3,5.55920124]
[1729800553634,0.04919029,2535.4,2535.3,5.55920124]
[1729800553836,3.94356,2535.8,2535.3,5.55920124]
[1729800554034,0.04919029,2535.4,2535.3,5.55920124]
[1729800554248,3.94356,2535.8,2535.3,5.55920124]
[1729800554406,0.04919029,2535.4,2535.3,5.55920124]
[1729800554802,3.9437,2535.7,2535.3,5.55920124]
[1729800555044,0.04919029,2535.4,2535.3,3.94428]
[1729800555352,0.04919029,2535.4,2535.3,5.55920124]
[1729800555649,3.9437,2535.7,2535.3,5.55920124]
[1729800555813,0.04919029,2535.4,2535.3,5.55920124]
[1729800556013,3.94353,2535.8,2535.3,5.55920124]
[1729800556245,0.04919029,2535.4,2535.3,5.55920124]
[1729800556458,3.94368,2535.7,2535.3,3.94428]
[1729800556653,0.04919029,2535.4,2534.9,0.7773]
[1729800556856,3.94425,2535.4,2534.9,6.33712124]
[1729800557064,7.93821595,2535.3,2534.9,0.7773]
[1729800557224,3.94484,2535.0,2534.5,3.94554]
[1729800557426,4.61681,2535.0,2534.4,0.7525]
[1729800557655,3.94516,2534.8,2534.4,0.7525]
[1729800557977,0.04923734,2534.7,2534.4,4.69819]
[1729800558132,3.94494,2534.9,2534.5,3.9455]
[1729800558339,0.04916685,2534.6,2534.5,3.9455]
[1729800558566,3.94494,2534.9,2534.5,3.9455]
[1729800558863,0.0490388,2534.6,2534.5,5.56042124]
[1729800559022,3.94494,2534.9,2534.5,5.56042124]
[1729800559224,0.04905816,2534.6,2534.5,3.9455]
[1729800559447,3.94494,2534.9,2534.5,5.56042124]
[1729800559644,0.04907752,2534.6,2534.5,5.56042124]
[1729800559957,0.0491379,2534.6,2534.5,5.56042124]
[1729800560425,3.94494,2534.9,2534.5,1.61492124]
[1729800560628,0.04916685,2534.6,2534.5,1.61492124]
[1729800560828,3.94494,2534.9,2534.5,1.61492124]
[1729800561027,0.04916685,2534.6,2534.5,1.61492124]
[1729800561255,7.88995,2534.9,2534.5,1.61492124]
[1729800561460,0.04916685,2534.6,2534.5,1.61492124]
[1729800561659,3.94494,2534.9,2534.5,1.61492124]
[1729800561859,0.04916685,2534.6,2534.5,1.61492124]
[1729800562062,3.05666883,2534.9,2534.5,1.61492124]
[1729800562662,0.04930783,2534.8,2534.5,1.61492124]
[1729800563469,0.04930783,2534.8,2534.6,1.61492124]
[1729800563764,4.61669,2535.0,2534.6,1.61492124]
[1729800563947,0.04913938,2534.7,2534.5,5.56045124]
[1729800564151,3.94494,2534.9,2534.6,1.61492124]
[1729800565251,8.56157,2535.0,2534.6,1.61492124]
[1729800565771,3.94493,2534.9,2534.6,1.61492124]
[1729800566073,8.56157,2535.0,2534.6,1.61492124]
[1729800566479,1.61492124,2535.2,2534.9,1.61492124]
[1729800566480,3.94462,2535.1,2534.9,1.61492124]
[1729800566651,3.94438,2535.3,2535.0,1.61492124]
[1729800566852,3.94438,2535.3,2534.9,1.61492124]
[1729800567054,7.88876,2535.3,2534.9,1.61492124]
[1729800567436,0.04879341,2535.2,2534.9,1.61492124]
[1729800567873,7.8888,2535.3,2534.9,1.61492124]
[1729800568122,0.04872293,2535.1,2534.9,1.61492124]
[1729800568335,0.04879341,2535.2,2534.8,2.38032124]
[1729800568571,0.04868395,2535.0,2534.8,2.38032124]
[1729800568770,3.94462,2535.1,2534.8,2.38032124]
[1729800568981,0.04861347,2534.9,2534.8,2.38032124]
[1729800569244,3.94462,2535.1,2534.8,3.27312162]
[1729800569562,3.94462,2535.1,2534.8,2.38032124]
[1729800569739,0.0468311,2535.0,2534.9,1.61492124]
[1729800570382,0.0468311,2535.0,2534.8,0.7654]
[1729800570592,0.0468311,2535.0,2534.8,2.38032124]
[1729800571039,0.0468311,2535.0,2534.9,1.61492124]
[1729800571247,0.0468311,2535.0,2534.9,6.19239636]
[1729800571472,0.0468311,2535.0,2534.9,6.95779636]
[1729800571790,4.61581,2535.6,2535.2,3.94443]
[1729800571791,0.6719,2535.6,2535.2,3.94443]
[1729800571987,0.6719,2535.6,2535.4,1.61492124]
[1729800572387,0.6719,2535.6,2535.3,1.61492124]
[1729800572555,4.61574,2535.6,2535.3,1.61492124]
[1729800572883,4.61574,2535.6,2535.2,1.61492124]
[1729800572884,3.94401,2535.5,2535.2,1.61492124]
[1729800574685,3.94401,2535.5,2535.1,1.61492124]
[1729800574841,0.04415837,2535.4,2535.2,1.61492124]
[1729800575040,0.04415837,2535.4,2535.1,1.61492124]
[1729800575241,0.04415837,2535.4,2535.2,1.61492124]
[1729800575998,0.04415837,2535.4,2535.1,2.70516388]
[1729800577615,3.94431,2535.3,2535.0,2.38032124]
[1729800577780,3.98839791,2535.3,2535.0,2.38032124]
[1729800578481,0.04408791,2535.3,2535.0,2.38032124]
[1729800578819,0.04408791,2535.3,2535.1,1.61492124]
[1729800578981,0.04408791,2535.3,2535.0,2.38032124]
[1729800579437,0.04408791,2535.3,2535.0,6.32507124]
[1729800580926,0.04408791,2535.3,2535.1,1.61492124]
[1729800581077,0.04408791,2535.3,2534.7,3.0]
[1729800581078,0.6719,2535.2,2534.7,3.0]
[1729800581277,0.6719,2535.2,2534.9,1.61492124]
[1729800581508,0.04393215,2535.1,2534.9,1.61492124]
[1729800581706,0.04393215,2535.1,2534.8,5.55991124]
[1729800581908,0.04393215,2535.1,2535.0,1.61492124]
[1729800582213,4.61606,2535.4,2535.0,3.38278675]
[1729800582512,4.61606,2535.4,2535.0,0.8095]
[1729800583624,4.61606,2535.4,2535.1,1.61492124]
[1729800585836,0.0440731,2535.3,2535.1,1.61492124]
[1729800587431,3.9883831,2535.3,2535.1,1.61492124]
[1729800588293,0.0440731,2535.3,2535.1,1.61492124]
[1729800590543,0.0440731,2535.3,2535.2,1.61492124]
[1729800590696,0.0440731,2535.3,2535.1,1.61492124]
[1729800591526,0.0440731,2535.3,2535.0,6.36918124]
[1729800592298,0.0440731,2535.3,2535.1,1.61492124]
[1729800593701,0.0440731,2535.3,2535.0,7.40848751]
[1729800594028,0.0440731,2535.3,2535.0,3.46372751]
[1729800594231,0.0440731,2535.3,2535.0,2.42442124]
[1729800595629,0.0440731,2535.3,2535.0,6.36917124]
[1729800596335,0.0440731,2535.3,2535.1,1.61492124]
[1729800597297,0.0440731,2535.3,2535.2,5.55938124]
[1729800597495,4.61563,2535.7,2535.2,7.17430248]
[1729800597732,4.61563,2535.7,2535.4,1.61492124]
[1729800597733,3.94373,2535.7,2535.4,1.61492124]
[1729800597927,0.04246263,2535.6,2535.4,1.61492124]
[1729800599049,3.944,2535.5,2535.1,1.61492124]
[1729800599342,4.61607,2535.4,2535.0,1.61492124]
[1729800599541,3.94437,2535.3,2535.0,1.61492124]
[1729800600046,0.04086429,2535.3,2534.9,4.75082]
[1729800600198,3.98522429,2535.3,2534.9,6.36574124]
[1729800600403,0.04086429,2535.3,2535.0,1.61492124]
[1729800602142,3.98516429,2535.3,2535.0,1.61492124]
[1729800602544,0.04086429,2535.3,2535.0,1.61492124]
[1729800602694,0.04086429,2535.3,2535.2,1.61492124]
[1729800602901,0.04086429,2535.3,2535.2,2.17087636]
[1729800603143,3.94387,2535.6,2535.2,6.92123636]
[1729800603446,3.94387,2535.6,2535.3,1.61492124]
[1729800603447,7.88781,2535.6,2535.3,1.61492124]
[1729800603610,3.94387,2535.6,2535.3,1.61492124]
[1729800604100,3.94387,2535.6,2535.4,1.61492124]
[1729800604306,3.94387,2535.6,2535.3,1.61492124]
[1729800606635,0.04100522,2535.5,2535.3,1.61492124]
[1729800607440,0.04100522,2535.5,2535.4,6.37967124]
[1729800607806,3.94346,2535.9,2535.4,6.37967124]
[1729800608007,3.94364,2535.8,2535.5,1.61492124]
[1729800608204,3.94375,2535.7,2535.4,0.8206]
[1729800609033,1.61492124,2535.6,2535.0,3.94468]
[1729800609238,4.61589,2535.5,2535.0,5.55960124]
[1729800609441,4.61589,2535.5,2535.1,3.94461]
[1729800610356,0.03896863,2535.4,2535.1,3.94461]
[1729800611556,3.98314863,2535.4,2535.0,1.61492124]
[1729800612431,3.94432,2535.3,2534.9,6.38035124]
[1729800612618,3.98314863,2535.4,2535.0,5.55961124]
[1729800612956,3.98314863,2535.4,2535.1,1.61492124]
[1729800613155,3.98314863,2535.4,2535.0,5.55961124]
[1729800614154,3.98314863,2535.4,2535.1,1.61492124]
[1729800614321,3.98314863,2535.4,2535.0,5.55961124]
[1729800614819,3.98314863,2535.4,2535.1,1.61492124]
[1729800615015,3.98314863,2535.4,2535.0,5.55961124]
[1729800617761,3.98314863,2535.4,2535.0,1.61492124]
[1729800617932,3.9443,2535.3,2534.9,6.38033124]
[1729800618127,0.03882764,2535.2,2534.9,6.38033124]
[1729800618330,6.66847164,2535.2,2534.8,0.82460427]
[1729800618531,3.9449,2535.0,2534.8,0.82460427]
[1729800618733,3.98347293,2534.9,2534.8,0.82460427]
[1729800618934,0.03855293,2534.9,2534.6,1.02523706]
[1729800619145,0.03855293,2534.9,2534.5,7.16366551]
[1729800619319,0.03855293,2534.9,2534.6,1.02517632]
[1729800619519,0.03855293,2534.9,2534.5,11.10914551]
[1729800619766,3.945,2534.9,2534.6,1.02514045]
[1729800619965,4.61698,2534.8,2534.4,0.82460427]
[1729800620121,4.61698,2534.8,2534.5,1.02536375]
[1729800620441,3.94543,2534.6,2534.3,2.19158702]
[1729800620642,5.56048124,2534.5,2534.3,1.36698275]
[1729800620856,3.98376229,2534.5,2534.3,1.36698275]
[1729800621046,0.66526064,2534.5,2534.1,1.61492124]
[1729800621263,0.03820229,2534.5,2534.1,5.56101124]
[1729800621823,0.03820229,2534.5,2534.2,1.61492124]
[1729800622028,3.94532,2534.7,2534.3,1.61492124]
[1729800622473,3.94532,2534.7,2534.3,5.56076124]
[1729800622681,3.94532,2534.7,2534.3,3.94584]
[1729800622971,3.94532,2534.7,2534.2,5.56092124]
[1729800624530,7.89068,2534.7,2534.2,5.56092124]
[1729800624774,3.94541,2534.6,2534.2,5.56092124]
[1729800625479,0.03685296,2534.5,2534.2,5.56092124]
[1729800625833,3.98241296,2534.5,2534.1,1.61492124]
[1729800626040,3.98241296,2534.5,2534.0,5.56114124]
[1729800626471,3.94591,2534.3,2533.9,0.7786]
[1729800626675,3.94628,2534.1,2533.7,0.8328]
[1729800626974,3.98279361,2534.0,2533.7,1.61492124]
[1729800627204,3.98279361,2534.0,2533.6,6.39460124]
[1729800627473,3.94637,2534.0,2533.6,7.51123479]
[1729800627783,0.03635306,2533.9,2533.7,1.61492124]
[1729800628080,0.03635306,2533.9,2533.6,5.89631355]
[1729800628081,0.03635306,2533.9,2533.6,7.51123479]
[1729800628252,0.03635306,2533.9,2533.6,2.73155479]
[1729800629072,0.03635306,2533.9,2533.6,6.67848479]
[1729800629438,3.94618,2534.1,2533.7,0.66784848]
[1729800629645,0.03617974,2533.8,2533.7,1.61492124]
[1729800629859,3.94618,2534.1,2533.7,5.56171124]
[1729800630173,0.03617974,2533.8,2533.7,5.56171124]